bitfinex/quotes_ETHUSD_20241022
["timestamp","ask_amount","ask_price","bid_price","bid_amount"]
[1729562945866,3.65312908,2655.7,2655.5,3.76575]
[1729562946193,4.44792908,2655.9,2655.6,3.76559]
[1729562946397,4.44792908,2655.9,2655.5,3.76567]
[1729562946766,4.44792908,2655.9,2655.5,7.53136]
[1729562946972,4.44792908,2655.9,2655.5,3.76567]
[1729562947708,8.21312908,2655.9,2655.3,3.84127349]
[1729562948005,8.21312908,2655.9,2655.3,3.76596]
[1729562948306,8.21312908,2655.9,2655.0,3.78522153]
[1729562948307,7.41889908,2655.5,2655.0,3.78522153]
[1729562948505,3.65312908,2655.1,2654.7,3.76683]
[1729562948707,3.65312908,2655.1,2654.7,4.520169]
[1729562949084,3.65312908,2655.1,2654.8,0.03591781]
[1729562949583,3.65312908,2655.1,2654.8,3.80259781]
[1729562949986,0.7948,2655.2,2654.8,3.80259781]
[1729562950492,0.7948,2655.2,2654.9,3.7666]
[1729562950722,3.65312908,2655.3,2655.0,3.76647]
[1729562950877,0.7997,2655.6,2655.3,3.76596]
[1729562951297,3.65312908,2655.7,2655.3,3.76596]
[1729562951506,3.65312908,2655.7,2655.2,3.76619]
[1729562951507,3.65312908,2655.7,2655.4,0.03591781]
[1729562951801,3.65312908,2655.7,2655.2,3.76619]
[1729562952007,7.41863908,2655.7,2655.3,0.03591781]
[1729562952223,7.41863908,2655.7,2655.2,4.142809]
[1729562952368,7.41863908,2655.7,2655.4,0.03591781]
[1729562952704,7.41863908,2655.7,2655.2,4.142809]
[1729562952925,7.41863908,2655.7,2655.5,0.03591781]
[1729562953097,7.41863908,2655.7,2655.2,4.142809]
[1729562953294,3.65312908,2655.7,2655.6,0.03591781]
[1729562953499,3.65312908,2655.7,2655.2,3.76619]
[1729562953677,3.65312908,2655.7,2655.6,0.03591781]
[1729562954014,7.41860908,2655.7,2655.6,0.03591781]
[1729562954173,7.41860908,2655.7,2655.2,3.76619]
[1729562954377,7.41860908,2655.7,2655.3,0.03591781]
[1729562954577,7.41860908,2655.7,2655.2,3.76619]
[1729562954917,7.41860908,2655.7,2655.3,0.03591781]
[1729562955271,7.41860908,2655.7,2655.2,4.519448]
[1729562955471,7.41860908,2655.7,2655.4,0.03591781]
[1729562955785,7.41860908,2655.7,2655.5,0.03591781]
[1729562956102,7.41860908,2655.7,2655.2,3.76619]
[1729562956306,7.41860908,2655.7,2655.6,0.03591781]
[1729562956513,7.53146,2655.6,2655.0,3.76639]
[1729562956724,4.46382908,2655.3,2654.8,3.76669]
[1729562956923,8.22996908,2655.3,2654.8,3.76669]
[1729562957493,4.46382908,2655.3,2654.8,3.76669]
[1729562957920,3.65312908,2655.1,2654.6,3.76697]
[1729562958116,7.41947908,2655.1,2654.6,3.76697]
[1729562958631,3.65312908,2655.1,2654.7,3.76687]
[1729562959195,3.76632,2655.2,2654.7,3.76687]
[1729562959502,0.7842,2655.6,2655.2,3.7661]
[1729562959698,3.65312908,2655.7,2655.3,3.76604]
[1729562960025,0.7842,2655.8,2655.3,4.55564]
[1729562960225,0.7842,2656.1,2655.8,3.76532]
[1729562960472,4.43732908,2656.3,2655.9,3.76509]
[1729562961997,4.43732908,2656.3,2655.7,3.8406911]
[1729562962206,4.43732908,2656.3,2655.8,3.76534]
[1729562962427,8.20198908,2656.3,2655.7,4.14945911]
[1729562962589,3.65312908,2656.1,2655.7,4.14945911]
[1729562963282,3.65312908,2656.1,2655.8,3.76534]
[1729562963482,0.7842,2656.3,2655.9,3.7652]
[1729562963483,4.43732908,2656.3,2655.9,3.7652]
[1729562964132,3.65312908,2656.1,2656.0,0.03505899]
[1729562965020,4.43732908,2656.3,2656.0,0.03505899]
[1729562965210,3.65312908,2656.3,2656.0,0.49547689]
[1729562965407,3.65312908,2656.3,2656.1,3.76491]
[1729562965750,0.84657153,2656.6,2656.2,3.76477]
[1729562966040,0.84657153,2656.6,2656.2,0.03493597]
[1729562966041,3.65312908,2656.5,2656.2,0.03493597]
[1729562966242,8.24545908,2656.3,2656.2,0.03493597]
[1729562966544,9.8117679,2656.3,2656.2,0.03493597]
[1729562966756,9.8117679,2656.3,2655.7,3.76547]
[1729562966903,0.8277,2656.3,2656.2,0.03313976]
[1729562967108,3.7645,2656.4,2656.0,3.76494]
[1729562967109,3.65312908,2656.4,2656.0,3.76494]
[1729562967334,3.65312908,2656.4,2656.0,7.52988]
[1729562967649,3.65312908,2656.4,2656.1,0.03313976]
[1729562969748,3.65312908,2656.2,2656.1,0.03313976]
[1729562970351,3.65312908,2656.4,2656.0,4.55734]
[1729562970554,3.65312908,2656.2,2656.1,0.03313976]
[1729562970921,3.65312908,2656.2,2655.9,3.76518]
[1729562971120,3.65312908,2656.2,2656.1,0.03313976]
[1729562971319,3.65312908,2656.2,2655.9,4.597449]
[1729562971528,3.65312908,2656.2,2656.1,0.03313976]
[1729562971744,3.65312908,2656.2,2655.9,4.597449]
[1729562971951,3.65312908,2656.2,2656.1,0.03313976]
[1729562972107,3.65312908,2656.2,2655.9,4.597449]
[1729562972312,3.65312908,2656.2,2656.1,0.03313976]
[1729562972507,3.65312908,2656.2,2655.9,3.76518]
[1729562973028,3.65312908,2656.2,2656.0,0.03313976]
[1729562973209,3.65312908,2656.1,2656.0,0.03313976]
[1729562973416,3.76506,2656.0,2655.5,4.53067]
[1729562973645,3.65312908,2655.9,2655.6,0.03313976]
[1729562973948,3.65312908,2655.7,2655.6,0.03313976]
[1729562974448,3.65312908,2655.7,2655.2,3.7661]
[1729562974752,3.65312908,2655.7,2655.6,0.03313976]
[1729562975209,3.65312908,2655.7,2655.3,3.76597]
[1729562975210,3.65312908,2655.7,2655.3,0.55]
[1729562975552,3.65312908,2655.5,2655.4,0.03313976]
[1729562975858,3.65312908,2655.5,2655.4,3.76591]
[1729562976053,3.65312908,2655.5,2655.4,3.79904976]
[1729562976751,0.7788,2655.7,2655.4,3.79904976]
[1729562976752,3.65312908,2655.7,2655.4,4.55556474]
[1729562977418,3.65312908,2655.7,2655.4,0.78965474]
[1729562977655,3.65312908,2655.7,2655.5,3.76576]
[1729562978453,3.65312908,2655.7,2655.6,0.03313976]
[1729562979238,3.65312908,2655.9,2655.6,0.84443976]
[1729562979667,3.65312908,2655.7,2655.6,4.61005976]
[1729562981047,3.65312908,2655.9,2655.6,4.61005976]
[1729562981545,3.65312908,2655.7,2655.6,0.84443976]
[1729562982343,3.65312908,2655.9,2655.6,4.61005976]
[1729562982644,3.65312908,2655.9,2655.6,1.76484952]
[1729562982874,3.65312908,2655.9,2655.6,0.84443976]
[1729562983061,3.65312908,2655.9,2655.6,0.91974371]
[1729562983379,3.65312908,2655.9,2655.6,4.60993976]
[1729562983778,3.65312908,2655.7,2655.6,4.60993976]
[1729562983954,3.65312908,2655.7,2655.6,5.15993976]
[1729562984872,3.65209741,2655.7,2655.6,5.15993976]
[1729562985384,3.65209741,2655.7,2655.6,0.03313976]
[1729562986060,3.65209741,2655.7,2655.5,0.55]
[1729562986379,3.65209741,2655.7,2655.6,0.03335493]
[1729562986677,3.65312908,2655.7,2655.3,3.76603]
[1729562986879,3.65312908,2655.5,2655.3,3.76603]
[1729562987878,3.65312908,2655.7,2655.4,3.76589]
[1729562988281,3.65312908,2655.7,2655.5,4.31569]
[1729562988665,3.65312908,2655.7,2655.5,0.55]
[1729562989146,3.65312908,2655.7,2655.5,4.31574]
[1729562989443,3.65312908,2655.7,2655.2,8.3154]
[1729562989648,7.41864908,2655.7,2655.2,4.5493]
[1729562989849,3.65312908,2655.5,2655.2,8.3154]
[1729562990157,3.65312908,2655.5,2655.2,3.7661]
[1729562990371,3.65312908,2655.5,2655.2,7.53221]
[1729562990684,3.65312908,2655.5,2655.2,3.7661]
[1729562991548,3.65312908,2655.5,2655.2,7.5322]
[1729562992184,3.65312908,2655.7,2655.3,3.76592]
[1729562994076,3.65312908,2655.7,2655.4,0.03364696]
[1729562996097,3.65312908,2655.7,2655.4,3.79949696]
[1729562996683,3.65312908,2655.7,2655.4,0.03364696]
[1729562997463,3.65312908,2655.7,2655.4,0.84444696]
[1729562997685,3.65312908,2655.7,2655.5,4.2267967]
[1729562998066,3.65312908,2655.7,2655.5,4.2267167]
[1729562998214,3.65312908,2655.7,2655.6,0.03364696]
[1729562998614,6.65312908,2656.5,2655.6,0.03364696]
[1729562998615,0.9526073,2656.9,2656.6,0.01]
[1729562998822,1.70157622,2657.1,2657.0,5.12394]
[1729562998823,0.41233872,2657.1,2657.0,5.12394]
[1729562998977,0.39349917,2657.1,2657.0,6.42273896]
[1729562999312,0.7609,2658.2,2657.5,3.76283]
[1729562999872,0.7609,2658.2,2657.6,0.03364696]
[1729563000302,0.7609,2658.2,2657.5,3.76291]
[1729563000616,4.52287,2658.2,2657.5,3.76291]
[1729563000779,0.452287,2658.1,2657.6,0.03364696]
[1729563002201,0.452287,2658.1,2657.6,3.79641696]
[1729563002400,0.7609,2658.2,2657.7,3.76255]
[1729563005001,0.7609,2658.2,2657.7,7.52509]
[1729563005320,0.7609,2658.2,2657.7,3.76254]
[1729563006402,4.52288,2658.2,2657.6,0.55]
[1729563006580,0.81760091,2658.1,2657.6,0.55]
[1729563007178,4.47072999,2658.1,2657.5,3.76283]
[1729563007522,4.47072999,2658.1,2657.5,7.52565]
[1729563007722,0.81760091,2658.1,2657.6,3.76277]
[1729563008416,3.76225,2658.0,2657.5,3.76282]
[1729563008715,0.823298,2657.9,2657.5,3.76282]
[1729563008922,4.47072999,2658.1,2657.5,3.76282]
[1729563009228,8.23283999,2658.1,2657.5,3.76282]
[1729563009425,4.47072999,2658.1,2657.5,3.76282]
[1729563009779,4.47072999,2658.1,2657.5,7.52566]
[1729563009986,8.23281999,2658.1,2657.5,3.76282]
[1729563010313,4.47072999,2658.1,2657.5,3.76282]
[1729563010824,4.47072999,2658.1,2657.4,0.07525357]
[1729563010825,3.76225,2658.0,2657.4,3.83831357]
[1729563010981,3.65312908,2657.5,2656.4,3.78331955]
[1729563011184,3.65312908,2657.5,2657.0,3.76362]
[1729563011385,0.7814,2657.6,2657.0,3.76362]
[1729563011816,0.7814,2657.6,2657.2,3.76327]
[1729563012181,0.7814,2657.6,2657.0,3.76362]
[1729563013187,0.7814,2657.6,2657.2,3.76334]
[1729563013597,0.7814,2657.6,2657.0,7.52715]
[1729563013804,1.60111291,2657.6,2657.1,3.7634]
[1729563014294,4.58266,2657.2,2656.6,3.76413]
[1729563014497,3.65312908,2657.1,2656.7,3.76405]
[1729563014691,3.65312908,2657.1,2656.6,3.76413]
[1729563016642,7.41663908,2657.1,2656.6,3.76413]
[1729563016883,8.61655499,2657.1,2656.5,0.55]
[1729563017174,0.8181,2656.8,2656.4,3.78323955]
[1729563017460,0.8181,2656.8,2656.4,3.7644]
[1729563017628,3.65312908,2656.7,2656.4,3.7644]
[1729563017829,3.65312908,2656.7,2656.3,3.76454]
[1729563018270,0.8181,2656.8,2656.2,3.7647]
[1729563018429,1.64160691,2656.8,2656.3,3.76454]
[1729563019232,3.65312908,2656.7,2656.2,3.76469]
[1729563019775,4.40652908,2656.3,2655.8,3.76526]
[1729563020148,4.40652908,2656.3,2655.8,7.53051]
[1729563020347,4.40652908,2656.3,2655.8,3.76525]
[1729563020638,4.40652908,2656.3,2655.9,3.76511]
[1729563021061,4.40652908,2656.3,2655.8,3.76525]
[1729563021275,4.40652908,2656.3,2656.0,3.76505]
[1729563021859,4.40652908,2656.3,2655.8,3.76525]
[1729563022064,4.40652908,2656.3,2655.8,3.76522]
[1729563022226,4.40652908,2656.3,2655.9,3.76514]
[1729563022846,4.40652908,2656.3,2656.0,3.76505]
[1729563023750,0.7534,2656.3,2656.1,3.76489]
[1729563023949,3.65312908,2656.5,2656.1,3.76489]
[1729563024160,3.65312908,2656.5,2656.2,3.76476]
[1729563026268,7.40442908,2656.9,2656.4,3.7644]
[1729563026438,4.40442908,2656.9,2656.5,3.76435]
[1729563026832,4.40442908,2656.9,2656.6,3.7642]
[1729563027063,4.40442908,2656.9,2656.4,7.52878]
[1729563027273,4.40442908,2656.9,2656.4,3.76438]
[1729563027438,0.7513,2656.9,2656.6,3.7642]
[1729563027640,4.40442908,2656.9,2656.6,3.7642]
[1729563027838,4.40442908,2656.9,2656.4,7.960178]
[1729563028375,4.40442908,2656.9,2656.6,3.76418]
[1729563029548,4.40442908,2656.9,2656.4,4.195798]
[1729563029746,4.40442908,2656.9,2656.4,0.431438]
[1729563029948,3.65312908,2656.7,2656.3,4.31455]
[1729563030151,3.65312908,2656.7,2656.2,3.76475]
[1729563030645,3.76393,2656.8,2656.2,7.52943]
[1729563030863,3.76393,2656.8,2656.3,3.76461]
[1729563031975,3.76393,2656.8,2656.4,0.07063108]
[1729563034535,3.76393,2656.8,2656.2,3.76467]
[1729563034782,3.76393,2656.8,2656.5,0.07022377]
[1729563034984,4.6624474,2656.8,2656.2,3.76467]
[1729563035142,3.76406,2656.7,2656.6,0.07022377]
[1729563035350,3.76438,2656.5,2656.0,3.76498]
[1729563035558,4.43032908,2656.6,2656.1,3.76482]
[1729563035991,8.19456908,2656.6,2656.1,3.76482]
[1729563036144,3.76437,2656.5,2655.9,3.76513]
[1729563036343,3.65312908,2656.4,2655.9,3.76511]
[1729563036595,3.65312908,2656.4,2656.0,3.76505]
[1729563036738,5.71604373,2656.6,2656.1,3.76491]
[1729563036938,9.48025373,2656.6,2656.1,3.76491]
[1729563038239,5.71604373,2656.6,2656.1,3.76491]
[1729563038444,0.7772,2656.6,2656.3,3.76454]
[1729563039156,0.7772,2656.6,2656.4,0.06331276]
[1729563039554,0.7772,2656.6,2656.3,3.76454]
[1729563039882,0.7772,2656.6,2656.4,0.06331276]
[1729563040177,7.41699908,2656.9,2656.5,3.76435]
[1729563040178,0.7508,2656.8,2656.5,3.76435]
[1729563040477,0.7508,2656.8,2656.6,0.06331276]
[1729563043808,0.7508,2656.8,2656.5,3.76434]
[1729563044019,0.7508,2656.8,2656.7,0.06331276]
[1729563044303,0.7508,2656.8,2656.5,3.76434]
[1729563044502,0.7508,2656.8,2656.7,0.06131276]
[1729563044670,0.7508,2656.8,2656.5,3.76434]
[1729563044870,0.7508,2656.8,2656.7,0.06131276]
[1729563045095,0.7508,2656.8,2656.5,3.76434]
[1729563045295,0.7508,2656.8,2656.6,0.06131276]
[1729563045879,0.7508,2656.8,2656.4,3.76446]
[1729563046200,0.7508,2656.8,2656.5,0.06122836]
[1729563046400,3.65312908,2656.7,2656.5,0.06122836]
[1729563046604,7.41719908,2656.7,2656.1,3.76487]
[1729563046912,3.65312908,2656.7,2656.2,3.76464]
[1729563047064,3.65312908,2656.5,2656.2,0.06122836]
[1729563047266,3.65312908,2656.3,2656.2,0.06122836]
[1729563047500,3.65312908,2656.3,2655.9,3.76514]
[1729563047704,3.65312908,2656.3,2656.0,0.06105191]
[1729563047866,0.8123,2656.4,2656.0,0.06105191]
[1729563047867,3.65312908,2656.1,2656.0,0.06105191]
[1729563048063,3.65312908,2656.1,2655.8,3.7653]
[1729563048275,3.65312908,2656.1,2656.0,0.05902452]
[1729563048488,3.65312908,2656.3,2655.9,3.76518]
[1729563048715,7.41776908,2656.3,2656.0,0.05916261]
[1729563049017,4.92677038,2656.3,2656.0,0.05916261]
[1729563049317,4.92677038,2656.3,2656.1,0.05916261]
[1729563049686,4.92677038,2656.3,2655.6,0.58927292]
[1729563049687,0.7932,2656.1,2655.6,0.58927292]
[1729563050015,0.7932,2656.4,2655.8,0.805]
[1729563050222,1.76936821,2656.8,2655.8,0.805]
[1729563050223,0.7932,2656.7,2655.8,0.805]
[1729563050514,0.7932,2656.7,2656.4,3.76449]
[1729563051033,0.7932,2656.7,2656.5,0.05235687]
[1729563051334,0.7932,2656.7,2656.3,3.76454]
[1729563051551,0.7932,2656.7,2656.6,0.05235687]
[1729563051695,0.7932,2656.7,2656.3,3.76454]
[1729563051894,0.7932,2656.7,2656.4,0.05235687]
[1729563053631,0.7932,2656.7,2656.4,3.81682687]
[1729563053798,1.61422091,2656.7,2656.4,0.05235687]
[1729563054227,1.61422091,2656.7,2656.1,3.76482]
[1729563054532,3.65312908,2656.6,2655.9,3.76509]
[1729563054827,3.76438,2656.5,2656.2,0.05235687]
[1729563054999,3.76438,2656.5,2655.9,3.76509]
[1729563055194,3.76438,2656.5,2656.0,3.76505]
[1729563055396,3.76438,2656.5,2656.0,3.81740687]
[1729563055636,3.65312908,2656.6,2656.0,3.81740687]
[1729563056321,3.65312908,2656.6,2656.0,0.05235687]
[1729563056521,3.65312908,2656.6,2656.1,3.7649]
[1729563056818,3.65312908,2656.6,2656.1,7.5298]
[1729563057020,4.55735,2656.7,2656.1,7.5298]
[1729563057193,0.7932,2656.7,2656.3,3.76463]
[1729563057398,0.7932,2656.7,2656.2,3.81711687]
[1729563057599,4.55726,2656.7,2656.2,3.76476]
[1729563057799,4.55726,2656.7,2656.3,0.05235687]
[1729563058537,4.53249,2656.4,2656.3,0.05235687]
[1729563058837,0.768,2656.4,2655.8,0.07530205]
[1729563059018,0.768,2656.4,2656.1,3.76482]
[1729563059225,0.768,2656.4,2655.9,3.81735955]
[1729563059543,0.768,2656.4,2656.0,0.05225721]
[1729563059831,3.65312908,2656.3,2656.0,0.05225721]
[1729563060199,3.65312908,2656.3,2655.8,3.76533]
[1729563060394,7.41777908,2656.3,2656.1,0.05225721]
[1729563060694,3.65312908,2656.3,2656.2,0.05045567]
[1729563060898,7.41779908,2656.3,2655.7,3.76538]
[1729563061135,7.41779908,2656.3,2655.8,0.05045567]
[1729563061434,7.41779908,2656.3,2655.8,3.7653]
[1729563061639,7.41779908,2656.3,2655.9,0.05045567]
[1729563062232,7.41779908,2656.3,2655.8,3.76532]
[1729563062437,7.41779908,2656.3,2656.0,0.05045567]
[1729563062619,7.41779908,2656.3,2655.7,3.76538]
[1729563062620,0.7846,2656.2,2655.7,3.76538]
[1729563063016,0.7846,2656.2,2655.8,0.05045567]
[1729563063435,0.7846,2656.2,2655.7,3.76538]
[1729563063631,0.7846,2656.2,2655.9,0.05045567]
[1729563063841,0.7846,2656.2,2655.7,3.76538]
[1729563064156,0.7846,2656.2,2656.0,0.05045567]
[1729563064433,0.7846,2656.2,2655.8,7.53066]
[1729563064625,0.7846,2656.2,2656.1,0.05045567]
[1729563065115,0.7846,2656.2,2655.8,3.76526]
[1729563065316,0.7846,2656.2,2655.9,0.05045567]
[1729563067143,4.54938,2656.2,2655.9,0.05045567]
[1729563067454,0.7846,2656.2,2655.7,3.76544]
[1729563067633,0.7846,2656.2,2656.0,0.05045567]
[1729563067958,0.7846,2656.2,2656.1,0.05045567]
[1729563068155,0.7846,2656.2,2655.8,3.76533]
[1729563068334,4.54938,2656.2,2655.6,7.53108]
[1729563068530,4.54938,2656.2,2655.9,0.05045567]
[1729563068724,4.54938,2656.2,2655.7,3.76538]
[1729563068942,4.54938,2656.2,2655.8,0.05045567]
[1729563069251,0.7846,2656.2,2655.8,0.05045567]
[1729563069471,0.7846,2656.2,2655.8,3.76529]
[1729563069660,0.7846,2656.2,2655.9,0.05045567]
[1729563071021,0.7846,2656.2,2655.7,3.76546]
[1729563071227,0.7846,2656.2,2656.0,0.048789]
[1729563071438,0.7846,2656.2,2655.7,3.76546]
[1729563071656,0.7846,2656.2,2656.1,0.048789]
[1729563071864,0.7846,2656.2,2655.7,3.76546]
[1729563072062,0.7846,2656.2,2656.1,0.048789]
[1729563072226,0.7846,2656.2,2655.7,3.76544]
[1729563072562,0.7846,2656.2,2655.7,0.753098]
[1729563072861,0.7846,2656.2,2655.8,0.048789]
[1729563072862,4.54939,2656.2,2655.8,0.048789]
[1729563073313,4.54801,2655.9,2655.3,0.60844517]
[1729563073524,4.54801,2655.9,2655.3,0.58960562]
[1729563074388,0.7827,2655.9,2655.3,0.58960562]
[1729563074615,11.17228908,2656.2,2655.5,0.8275]
[1729563077393,14.93713908,2656.2,2655.5,0.8275]
[1729563077796,11.17227908,2656.2,2655.5,0.8275]
[1729563078110,14.93714908,2656.2,2655.5,0.8275]
[1729563078990,0.7543,2656.2,2655.6,4.31555]
[1729563079193,0.7543,2656.2,2655.7,0.514305]
[1729563080400,3.0,2656.4,2655.8,3.76532]
[1729563080581,3.0,2656.4,2655.8,7.53056]
[1729563080783,0.781,2656.5,2655.9,0.8266]
[1729563081913,0.781,2656.5,2655.9,4.59176]
[1729563082182,0.781,2656.5,2656.0,0.8432298]
[1729563082407,3.781,2656.5,2656.0,0.8432298]
[1729563083404,0.781,2656.5,2656.0,4.6082698]
[1729563083614,0.781,2656.5,2656.1,4.31483]
[1729563083797,0.7843,2656.8,2656.3,0.55]
[1729563083994,0.7843,2656.8,2656.3,1.058575]
[1729563084529,0.7843,2656.8,2656.4,0.04900347]
[1729563085325,3.76415,2656.7,2656.4,0.04900347]
[1729563085625,11.18143908,2656.7,2656.1,0.55]
[1729563085929,11.18143908,2656.7,2656.1,1.060467]
[1729563086142,11.18143908,2656.7,2656.2,0.04862819]
[1729563086635,7.41727908,2656.7,2656.2,0.04862819]
[1729563088138,6.76387,2656.9,2656.2,0.04862819]
[1729563088139,11.25055908,2656.3,2656.2,0.04862819]
[1729563088299,13.1173769,2656.3,2655.3,0.58960562]
[1729563088635,6.76487,2656.2,2655.4,0.03909366]
[1729563089040,3.0,2656.0,2655.4,0.03909366]
[1729563089243,6.76507,2656.0,2655.4,0.03909366]
[1729563089539,3.0,2656.0,2655.4,0.03909366]
[1729563089709,3.0,2656.0,2655.4,0.56712177]
[1729563090035,6.76515,2656.0,2655.4,0.56712177]
[1729563090732,3.0,2656.0,2655.4,0.56712177]
[1729563091030,6.76508,2656.0,2655.4,0.56712177]
[1729563091728,3.76524,2655.9,2655.4,0.56712177]
[1729563091903,3.76524,2655.9,2655.4,0.03909366]
[1729563096769,3.76453,2656.4,2655.4,0.03909366]
[1729563096770,3.76447,2656.5,2655.7,4.3154]
[1729563097070,0.9526073,2656.6,2655.9,0.55]
[1729563097263,0.8002,2656.7,2656.1,0.55]
[1729563097841,4.56431,2656.7,2656.3,0.55]
[1729563098156,4.56431,2656.7,2656.1,0.55]
[1729563098330,4.56431,2656.7,2656.4,0.03934621]
[1729563098646,4.56431,2656.7,2656.1,0.55]
[1729563098852,4.56431,2656.7,2656.5,0.03914723]
[1729563099034,4.56431,2656.7,2656.1,1.11703536]
[1729563099360,7.56431,2656.7,2656.1,1.11703536]
[1729563099570,7.56431,2656.7,2656.3,0.55]
[1729563099937,7.56431,2656.7,2656.2,0.55]
[1729563100287,7.56431,2656.7,2656.2,1.17372989]
[1729563100736,7.56431,2656.7,2656.3,0.03788362]
[1729563104641,3.0,2656.8,2656.3,0.03788362]
[1729563104874,3.0,2656.8,2656.4,0.8147]
[1729563105241,7.41690908,2656.9,2656.4,0.8147]
[1729563105444,7.41690908,2656.9,2656.5,0.03788362]
[1729563105678,3.76378,2656.9,2656.5,0.03788362]
[1729563105852,0.8177,2657.0,2656.5,0.03788362]
[1729563106179,3.76368,2657.0,2656.5,0.03788362]
[1729563106489,8.17677908,2656.7,2656.5,0.03788362]
[1729563106979,3.76415,2656.7,2656.6,0.03770775]
[1729563107577,8.17648908,2656.9,2656.2,0.55]
[1729563107781,7.41726908,2656.7,2656.2,0.55]
[1729563107986,7.41726908,2656.7,2656.3,0.03768481]
[1729563108344,3.76421,2656.6,2656.3,0.03768481]
[1729563109289,3.65312908,2656.7,2656.3,0.03768481]
[1729563109579,7.41719908,2656.7,2656.3,0.03768481]
[1729563110256,0.7927,2656.4,2656.3,0.03768481]
[1729563110681,7.41755908,2656.5,2655.8,4.65612818]
[1729563110839,3.76458,2656.4,2655.8,0.89079818]
[1729563111045,3.76458,2656.4,2655.9,0.03659304]
[1729563112150,3.76464,2656.3,2655.9,0.03659304]
[1729563112973,3.7645,2656.4,2655.9,0.03659304]
[1729563113175,3.76452,2656.4,2655.9,0.03659304]
[1729563113377,4.55057,2656.2,2655.9,0.03659304]
[1729563113577,0.7857,2656.2,2655.9,0.03659304]
[1729563113779,7.41776908,2656.3,2655.7,0.55]
[1729563113954,7.41776908,2656.3,2656.0,0.03633688]
[1729563114151,7.41776908,2656.3,2655.7,4.31545]
[1729563114373,7.41776908,2656.3,2655.8,0.03633688]
[1729563114887,7.41776908,2656.3,2655.7,5.200015]
[1729563115088,7.41776908,2656.3,2655.9,0.03633688]
[1729563115295,7.41776908,2656.3,2655.7,5.200015]
[1729563115476,7.41776908,2656.3,2656.0,0.03633688]
[1729563115788,3.76477,2656.2,2656.1,0.03633688]
[1729563116195,3.76493,2656.1,2655.6,0.7645]
[1729563116550,11.18259908,2656.3,2655.6,4.6054139]
[1729563117068,3.76481,2656.2,2655.6,0.8398039]
[1729563117869,3.76481,2656.2,2655.6,0.83980389]
[1729563118330,3.76481,2656.2,2655.6,1.3611869]
[1729563118476,3.76481,2656.2,2655.6,1.28588301]
[1729563118799,3.76481,2656.2,2655.6,1.3611869]
[1729563119370,3.76481,2656.2,2655.7,0.55]
[1729563120761,7.5297,2656.2,2655.7,0.55]
[1729563120958,3.76495,2656.1,2655.7,0.55]
[1729563121262,3.76481,2656.2,2655.7,0.55]
[1729563121485,7.52966,2656.2,2655.7,0.55]
[1729563121664,3.76481,2656.2,2655.7,0.55]
[1729563121883,7.52967,2656.2,2655.7,0.55]
[1729563122311,3.76481,2656.2,2655.7,1.058025]
[1729563122606,7.5297,2656.2,2655.7,1.058025]
[1729563122775,3.76505,2656.1,2655.7,1.058025]
[1729563123105,3.76505,2656.1,2655.7,0.55]
[1729563124610,3.76574,2655.6,2655.4,0.01883955]
[1729563124813,3.76576,2655.5,2655.1,0.86206361]
[1729563125467,3.76619,2655.2,2655.1,0.03426361]
[1729563126300,11.53785599,2655.2,2655.1,0.03426361]
[1729563128101,11.53785599,2655.2,2655.1,0.06917554]
[1729563128264,11.53785599,2655.2,2655.1,0.03426361]
[1729563128676,11.53785599,2655.2,2655.1,0.06917554]
[1729563128910,11.53785599,2655.2,2655.1,0.03426361]
[1729563129108,11.53785599,2655.2,2655.1,0.06917554]
[1729563129298,11.53785599,2655.2,2655.1,0.03426361]
[1729563129475,11.53785599,2655.2,2655.1,0.06917554]
[1729563129694,11.53785599,2655.2,2655.1,0.03426361]
[1729563130230,11.53785599,2655.2,2655.1,0.06917554]
[1729563130409,11.53785599,2655.2,2655.1,0.03426361]
[1729563130609,11.53785599,2655.2,2655.1,0.06917554]
[1729563130793,11.53785599,2655.2,2655.1,0.03426361]
[1729563130996,11.53785599,2655.2,2655.1,0.06917554]
[1729563131216,11.53785599,2655.2,2655.1,0.03426361]
[1729563131422,11.53785599,2655.2,2655.1,0.06917554]
[1729563131629,11.53785599,2655.2,2655.1,0.03426361]
[1729563132227,12.36735599,2655.2,2655.1,0.03426361]
[1729563135337,12.37735599,2655.2,2655.1,0.03426361]
[1729563136035,7.42087908,2654.1,2654.0,0.01883955]
[1729563136245,7.42087908,2654.1,2653.9,0.7749]
[1729563136400,7.42087908,2654.1,2654.0,0.03668753]
[1729563137021,3.65312908,2654.1,2654.0,0.03668753]
[1729563137240,7.42061908,2654.3,2654.0,0.03668753]
[1729563137532,3.65312908,2654.3,2654.0,0.03668753]
[1729563137745,3.0,2654.3,2654.0,0.03668753]
[1729563137937,6.76747,2654.3,2654.0,0.03668753]
[1729563138635,10.42059908,2654.3,2654.0,0.03668753]
[1729563138838,3.76765,2654.2,2654.0,0.03668753]
[1729563139722,3.65312908,2654.5,2654.0,0.03668753]
[1729563140055,3.0,2654.6,2654.2,0.8039]
[1729563140415,3.0,2654.6,2654.3,0.03717006]
[1729563140618,6.76713,2654.6,2654.3,0.03717006]
[1729563140819,6.76713,2654.6,2654.2,0.8039]
[1729563141360,6.76713,2654.6,2654.3,0.03717006]
[1729563141522,6.76713,2654.6,2654.2,0.8039]
[1729563141721,6.76713,2654.6,2654.3,0.03717006]
[1729563141922,6.76713,2654.6,2654.2,0.8039]
[1729563142123,6.76713,2654.6,2654.3,0.03717006]
[1729563142425,6.76713,2654.6,2654.2,0.8039]
[1729563142642,6.76713,2654.6,2654.4,0.03717006]
[1729563142821,6.76713,2654.6,2654.2,0.8039]
[1729563143048,6.76713,2654.6,2654.5,0.03717006]
[1729563143253,6.76713,2654.6,2654.2,0.8039]
[1729563143445,6.76713,2654.6,2654.5,0.03717006]
[1729563144060,10.53426,2654.6,2654.2,0.8039]
[1729563144217,3.0,2654.6,2654.5,0.03717006]
[1729563144422,3.0,2654.6,2654.2,0.8039]
[1729563144657,3.0,2654.6,2654.2,1.316054]
[1729563144856,3.0,2654.6,2654.3,0.03717006]
[1729563145371,3.0,2654.6,2654.4,0.03759126]
[1729563145571,3.0,2654.6,2654.2,1.316054]
[1729563145724,3.0,2654.6,2654.3,0.03739975]
[1729563145925,6.76705,2654.6,2654.2,1.316054]